[Event "WCCC G10 2019"]
[Site "Weifang"]
[Date "2019.08.25"]
[Round "5.7"]
[White "Zhao, Yunqing"]
[Black "Indira Priyadharshini Subbu"]
[Result "1-0"]
[ECO "E65"]
[WhiteElo "1539"]
[BlackElo "1346"]
[Annotator "NA"]
[PlyCount "89"]
[EventDate "2019.08.21"]
[EventType "swiss"]
[EventCountry "CHN"]
[SourceTitle "playchess.com"]
[Source "ChessBase"]
[SourceQuality "1"]
[TimeControl "40/5400+30:1800+30"]

1. d4 {[%emt 0:00:00]} Nf6 {[%emt 0:01:13]} 2. c4 {[%emt 0:00:00]} g6 {[%emt 0:00:07]} 3. g3 {[%emt 0:00:00]} Bg7 {[%emt 0:00:07]} 4. Bg2 {[%emt 0:00:00]} O-O {[%emt 0:00:56]} 5. Nf3 {[%emt 0:00:00]} d6 {[%emt 0:03:34]} 6. O-O {[%emt 0:00:30]} c5 {[%emt 0:01:44]} 7. d5 {[%emt 0:00:09]} a6 {[%emt 0:14:03]} 8. Nc3 {[%emt 0:01:41]} Nbd7 {[%emt 0:05:40]} 9. Qc2 {[%emt 0:01:10]} Nb6 {[%emt 0:04:18]} 10. Qd3 {[%emt 0:01:47]} Bd7 {[%emt 0:07:38]} 11. e4 {[%emt 0:00:42]} Qc8 {[%emt 0:01:11]} 12. Re1 {[%emt 0:13:12]} Bh3 {[%emt 0:01:53]} 13. Nd2 {[%emt 0:04:04]} Bxg2 {[%emt 0:02:22]} 14. Kxg2 {[%emt 0:00:09]} Nbd7 {[%emt 0:00:32]} 15. f4 {[%emt 0:00:32]} Ne8 {[%emt 0:01:02]} 16. Nf3 {[%emt 0:01:57]} Qc7 {[%emt 0:07:39]} 17. Qe3 {[%emt 0:02:45]} Nb6 {[%emt 0:11:16]} 18. Qd3 {[%emt 0:01:28]} Nd7 {[%emt 0:00:48]} 19. Re2 {[%emt 0:00:38]} e5 {[%emt 0:02:24]} 20. f5 {[%emt 0:00:29]} Nef6 {[%emt 0:02:43]} 21. h3 {[%emt 0:04:22]} gxf5 {[%emt 0:06:32]} 22. exf5 {[%emt 0:00:09]} Kh8 {[%emt 0:02:17]} 23. Kh2 {[%emt 0:00:46]} Qd8 {[%emt 0:04:38]} 24. Ng5 {[%emt 0:00:42]} h6 {[%emt 0:00:33]} 25. Nge4 {[%emt 0:00:09]} Nxe4 {[%emt 0:00:22]} 26. Nxe4 {[%emt 0:00:13]} Nf6 {[%emt 0:00:47]} 27. Bd2 {[%emt 0:01:47]} Nxe4 28. Rxe4 {[%emt 0:00:15]} Qf6 {[%emt 0:02:50]} 29. Rf1 {[%emt 0:00:10]} Kh7 {[%emt 0:04:22]} 30. a4 {[%emt 0:02:26]} Rh8 {[%emt 0:01:01]} 31. a5 {[%emt 0:00:52]} Kg8 {[%emt 0:00:41]} 32. Qb3 {[%emt 0:00:26]} Qe7 {[%emt 0:01:09]} 33. Rg4 {[%emt 0:00:14]} f6 {[%emt 0:00:17]} 34. Qb6 {[%emt 0:01:07]} Rc8 {[%emt 0:03:11]} 35. b4 {[%emt 0:01:58]} Qc7 {[%emt 0:03:31]} 36. bxc5 {[%emt 0:00:45]} dxc5 {[%emt 0:00:14]} 37. Qxf6 {[%emt 0:00:14]} Qf7 {[%emt 0:01:31]} 38. Qxe5 {[%emt 0:01:19]} Re8 {[%emt 0:00:42]} 39. Rxg7+ {[%emt 0:00:22]} Qxg7 {[%emt 0:00:26]} 40. Qxe8+ {[%emt 0:00:07]} Kh7 {[%emt 0:00:05]} 41. Qe4 {[%emt 0:30:30]} Qf6 {[%emt 0:30:18]} 42. Bc3 {[%emt 0:00:35]} Qxc3 {[%emt 0:00:21]} 43. f6+ {[%emt 0:00:04]} Kg8 {[%emt 0:00:04]} 44. Qe8+ {[%emt 0:00:04]} Kh7 {[%emt 0:00:03]} 45. Qf7# {[%emt 0:00:03]} 1-0

[Event "WCCC G10 2019"]
[Site "Weifang"]
[Date "2019.08.25"]
[Round "5.10"]
[White "Maral Altankhuyag"]
[Black "Zhou, Yafei"]
[Result "0-1"]
[ECO "C07"]
[WhiteElo "1078"]
[BlackElo "1757"]
[Annotator "NA"]
[PlyCount "110"]
[EventDate "2019.08.21"]
[EventType "swiss"]
[EventCountry "CHN"]
[SourceTitle "playchess.com"]
[Source "ChessBase"]
[SourceQuality "1"]
[TimeControl "40/5400+30:1800+30"]

1. e4 {[%emt 0:00:00]} e6 {[%emt 0:00:00]} 2. d4 {[%emt 0:00:00]} d5 {[%emt 0:00:00]} 3. Nd2 {[%emt 0:00:00]} c5 {[%emt 0:00:00]} 4. exd5 {[%emt 0:00:20]} Qxd5 {[%emt 0:00:00]} 5. Ngf3 {[%emt 0:00:21]} cxd4 {[%emt 0:00:00]} 6. Bc4 {[%emt 0:00:24]} Qd8 {[%emt 0:00:02]} 7. O-O {[%emt 0:00:17]} Nc6 {[%emt 0:00:20]} 8. Nb3 {[%emt 0:00:17]} a6 {[%emt 0:00:07]} 9. Nbxd4 {[%emt 0:00:19]} Nxd4 {[%emt 0:00:06]} 10. Nxd4 {[%emt 0:00:22]} Qc7 {[%emt 0:00:08]} 11. Bd3 {[%emt 0:00:37]} Bd6 {[%emt 0:00:14]} 12. h3 {[%emt 0:00:38]} Ne7 {[%emt 0:00:53]} 13. Re1 {[%emt 0:01:44]} O-O {[%emt 0:01:16]} 14. c3 {[%emt 0:06:34]} Ng6 {[%emt 0:02:11]} 15. Be3 {[%emt 0:04:58]} b5 {[%emt 0:03:17]} 16. Rc1 {[%emt 0:03:37]} Ne5 {[%emt 0:13:45]} 17. Be4 {[%emt 0:13:09]} Rb8 {[%emt 0:02:41]} 18. b3 {[%emt 0:03:38]} f5 {[%emt 0:05:57]} 19. Bf3 {[%emt 0:09:42]} f4 {[%emt 0:08:48]} 20. Bxf4 {[%emt 0:25:21]} Nxf3+ {[%emt 0:01:28]} 21. Nxf3 {[%emt 0:01:28]} Bxf4 {[%emt 0:00:25]} 22. Rc2 {[%emt 0:00:49]} Rb6 {[%emt 0:10:56]} 23. Qe2 {[%emt 0:03:53]} Bb7 {[%emt 0:00:52]} 24. Nd2 {[%emt 0:01:12]} Rd8 {[%emt 0:03:51]} 25. c4 {[%emt 0:05:26]} Bxd2 {[%emt 0:04:07]} 26. Rxd2 {[%emt 0:00:26]} Rxd2 {[%emt 0:00:11]} 27. Qxd2 {[%emt 0:00:06]} bxc4 {[%emt 0:00:52]} 28. bxc4 {[%emt 0:00:26]} Rd6 {[%emt 0:02:14]} 29. Qb4 {[%emt 0:01:26]} Qc6 {[%emt 0:03:30]} 30. f3 {[%emt 0:01:32]} Qb6+ {[%emt 0:02:25]} 31. Qxb6 {[%emt 0:00:10]} Rxb6 {[%emt 0:00:05]} 32. Rd1 {[%emt 0:01:03]} Kf7 {[%emt 0:07:45]} 33. Rd7+ {[%emt 0:00:21]} Kf6 {[%emt 0:00:08]} 34. Rc7 {[%emt 0:00:29]} Bc6 {[%emt 0:02:53]} 35. Kf2 {[%emt 0:03:09]} Ba4 {[%emt 0:03:47]} 36. Ke3 {[%emt 0:07:40]} Rb2 {[%emt 0:02:37]} 37. g3 {[%emt 0:01:36]} Rxa2 {[%emt 0:00:08]} 38. c5 {[%emt 0:00:15]} Ra3+ {[%emt 0:00:47]} 39. Ke2 {[%emt 0:02:27]} Bb5+ {[%emt 0:00:10]} 40. Kf2 {[%emt 0:00:23]} Rc3 {[%emt 0:00:16]} 41. f4 {[%emt 0:30:10]} a5 {[%emt 0:30:17]} 42. Ra7 {[%emt 0:01:19]} a4 {[%emt 0:00:21]} 43. Ra5 {[%emt 0:01:20]} Rxc5 {[%emt 0:00:14]} 44. Ke1 {[%emt 0:01:52]} Rc1+ {[%emt 0:00:26]} 45. Kd2 {[%emt 0:00:27]} Rb1 {[%emt 0:00:06]} 46. g4 {[%emt 0:00:37]} h6 {[%emt 0:00:27]} 47. Ke3 {[%emt 0:00:00]} Bc6 {[%emt 0:00:00]} 48. Kf2 {[%emt 0:00:00]} Rb3 {[%emt 0:00:00]} 49. Ra6 {[%emt 0:00:00]} Bb5 {[%emt 0:00:00]} 50. Ra5 {[%emt 0:00:00]} a3 {[%emt 0:00:00]} 51. Kg1 {[%emt 0:00:00]} Bc4 {[%emt 0:00:00]} 52. Kg2 {[%emt 0:00:00]} Rb2+ {[%emt 0:00:00]} 53. Kf3 {[%emt 0:00:00]} a2 {[%emt 0:00:00]} 54. Ra4 {[%emt 0:00:00]} Bd5+ {[%emt 0:00:00]} 55. Ke3 {[%emt 0:00:00]} Rb1 {[%emt 0:00:00]} 0-1

[Event "WCCC G10 2019"]
[Site "Weifang"]
[Date "2019.08.26"]
[Round "6.1"]
[White "Feng, Eunice"]
[Black "Chen, Yining"]
[Result "0-1"]
[ECO "C54"]
[WhiteElo "1280"]
[BlackElo "1744"]
[Annotator "NA RC"]
[PlyCount "54"]
[EventDate "2019.08.21"]
[EventType "swiss"]
[EventCountry "CHN"]
[SourceTitle "playchess.com"]
[Source "ChessBase"]
[SourceQuality "1"]
[TimeControl "40/5400+30:1800+30"]

1. e4 {[%emt 0:00:00]} e5 {[%emt 0:00:00]} 2. Nf3 {[%emt 0:00:00]} Nc6 {[%emt 0:00:00]} 3. Bc4 {[%emt 0:00:00]} Bc5 {[%emt 0:00:00]} 4. c3 {[%emt 0:00:00]} Nf6 {[%emt 0:00:21]} 5. d4 {[%emt 0:00:00]} exd4 {[%emt 0:00:10]} 6. e5 {[%emt 0:00:03]} d5 {[%emt 0:00:10]} 7. Bb5 {[%emt 0:00:07]} Ne4 {[%emt 0:00:28]} 8. cxd4 {[%emt 0:00:09]} Bb6 {[%emt 0:00:38]} 9. Nc3 {[%emt 0:00:09]} O-O {[%emt 0:01:03]} 10. Be3 {[%emt 0:00:09]} Bg4 {[%emt 0:00:46]} 11. h3 {[%emt 0:00:14]} Bh5 {[%emt 0:01:27]} 12. Qc2 {[%emt 0:00:11]} Nxc3 {[%emt 0:00:55]} 13. bxc3 {[%emt 0:00:12]} f6 {[%emt 0:00:37]} 14. g4 {[%emt 0:11:25]} Bg6 {[%emt 0:09:53]} 15. Bd3 {[%emt 0:00:18]} fxe5 {[%emt 0:01:07]} 16. Bxg6 {[%emt 0:12:53]} hxg6 {[%emt 0:00:22]} 17. Nxe5 {[%emt 0:04:21]} Nxe5 {[%emt 0:00:18]} 18. dxe5 {[%emt 0:00:08]} Bxe3 {[%emt 0:00:07]} 19. fxe3 {[%emt 0:00:07]} Qh4+ {[%emt 0:02:43]} 20. Kd1 {[%emt 0:00:07]} Qg3 {[%emt 0:03:16]} 21. Re1 {[%emt 0:04:56]} Rf2 {[%emt 0:03:36]} 22. Qxg6 {[%emt 0:02:02]} Qg2 {[%emt 0:01:19]} 23. Qd3 {[%emt 0:00:41]} Raf8 {[%emt 0:00:41]} 24. Rc1 {[%emt 0:03:53]} Rf1 {[%emt 0:01:42]} 25. Rc2 {[%emt 0:02:05]} Rxe1+ {[%emt 0:00:52]} 26. Kxe1 {[%emt 0:00:04]} Qg1+ {[%emt 0:00:03]} 27. Kd2 {[%emt 0:00:06]} Rf2+ {[%emt 0:00:05]} 0-1

[Event "WCCC G10 2019"]
[Site "Weifang"]
[Date "2019.08.26"]
[Round "6.2"]
[White "Lee, Alice"]
[Black "Li, Rachael"]
[Result "1-0"]
[ECO "A61"]
[WhiteElo "1822"]
[BlackElo "1911"]
[Annotator "NA"]
[PlyCount "149"]
[EventDate "2019.08.21"]
[EventType "swiss"]
[EventCountry "CHN"]
[SourceTitle "playchess.com"]
[Source "ChessBase"]
[SourceQuality "1"]
[TimeControl "40/5400+30:1800+30"]

1. d4 {[%emt 0:00:06]} Nf6 {[%emt 0:00:00]} 2. c4 {[%emt 0:00:00]} c5 {[%emt 0:00:00]} 3. d5 {[%emt 0:00:00]} e6 {[%emt 0:00:00]} 4. Nc3 {[%emt 0:00:00]} exd5 {[%emt 0:00:00]} 5. cxd5 {[%emt 0:00:00]} d6 {[%emt 0:00:00]} 6. Nf3 {[%emt 0:00:00]} g6 {[%emt 0:00:00]} 7. Bf4 {[%emt 0:00:09]} a6 {[%emt 0:00:00]} 8. a4 {[%emt 0:00:07]} Bg7 {[%emt 0:00:00]} 9. h3 {[%emt 0:00:49]} O-O {[%emt 0:00:04]} 10. e3 {[%emt 0:00:18]} Ne8 {[%emt 0:02:59] A61: Modern Benoni: Nf3 without early e4} 11. Be2 {[%emt 0:01:11]} Nd7 {[%emt 0:00:28]} 12. O-O {[%emt 0:00:47]} Ne5 {[%emt 0:06:07]} (12... Rb8 13. a5 b5 14. axb6 Rxb6 15. Qc2 Qe7 16. Nd2 Ne5 17. Bh2 f5 18. Rfe1 {1-0 (36) Gledura,B (2622)-Perunovic,M (2604) Hungary 2019}) 13. Nd2 {[%emt 0:03:43]} f5 {[%emt 0:12:52]} 14. a5 {[%emt 0:04:43]} b5 $146 {[%emt 0:10:10]} ({Predecessor:} 14... Qe7 15. Qb3 Rb8 16. Bxa6 Nc7 17. Be2 Bd7 18. Qb6 {1-0 (35) Garau,B (2229)-Blondel,F (1975) ICCF email 2013}) 15. axb6 {[%emt 0:01:13]} Qxb6 {[%emt 0:00:06]} 16. Bxe5 {[%emt 0:03:24]} Bxe5 {[%emt 0:01:10]} 17. Nc4 {[%emt 0:03:29]} Qc7 {[%emt 0:04:20]} 18. Nxe5 {[%emt 0:06:24]} dxe5 {[%emt 0:00:02]} 19. Na4 {[%emt 0:04:44]} Bd7 {[%emt 0:07:14]} 20. Qc2 {[%emt 0:03:01]} Bxa4 {[%emt 0:04:20]} 21. Rxa4 {[%emt 0:00:43]} Nd6 {[%emt 0:01:39]} 22. Rxa6 {[%emt 0:03:57]} Rxa6 {[%emt 0:01:02]} 23. Bxa6 {[%emt 0:00:04]} Qb6 {[%emt 0:01:09]} 24. Bd3 {[%emt 0:04:03]} e4 {[%emt 0:12:17]} 25. Bc4 {[%emt 0:03:35]} f4 {[%emt 0:08:45]} 26. exf4 {[%emt 0:03:45]} Rxf4 {[%emt 0:00:09]} 27. b3 {[%emt 0:02:36]} Qa7 {[%emt 0:08:24]} 28. Qc3 {[%emt 0:03:12]} Qg7 {[%emt 0:02:47]} 29. Qe3 {[%emt 0:02:19]} Rf8 {[%emt 0:02:11]} 30. Qxc5 {[%emt 0:01:32]} Qe5 {[%emt 0:00:15]} 31. Rd1 {[%emt 0:01:35]} Ra8 {[%emt 0:05:06]} 32. Bf1 {[%emt 0:09:38]} Ra2 {[%emt 0:02:13]} 33. b4 {[%emt 0:02:33]} Rb2 $18 {[%emt 0:03:49]} 34. Ra1 {[%emt 0:06:29]} e3 {[%emt 0:01:21]} 35. Ra8+ {[%emt 0:06:37]} Kg7 {[%emt 0:00:13]} 36. Qa7+ {[%emt 0:08:00]} Kh6 {[%emt 0:00:35]} 37. Qxe3+ {[%emt 0:01:26]} Qxe3 {[%emt 0:00:05]} 38. fxe3 {[%emt 0:00:01]} Rxb4 {[%emt 0:00:18]} 39. Rd8 {[%emt 0:00:46]} Nf7 {[%emt 0:00:22]} 40. Rd7 {[%emt 0:00:39]} Kg7 {[%emt 0:00:07]} 41. Be2 {[%emt 0:34:24]} Kf6 {[%emt 0:30:54]} 42. Bf3 {[%emt 0:01:38]} h6 {[%emt 0:00:25]} 43. Kf2 {[%emt 0:01:53]} Rb2+ {[%emt 0:01:30]} 44. Kg3 {[%emt 0:00:38]} Rb3 {[%emt 0:00:13]} 45. e4 {[%emt 0:01:23]} Ra3 {[%emt 0:01:14]} 46. Rb7 {[%emt 0:02:47]} Nd6 {[%emt 0:00:46]} 47. Rb4 {[%emt 0:00:00]} Rc3 {[%emt 0:00:00]} 48. Kf4 {[%emt 0:00:00]} g5+ {[%emt 0:00:00]} 49. Kg4 {[%emt 0:00:00]} Rc4 {[%emt 0:00:00]} 50. Rb6 {[%emt 0:00:00]} Ke5 {[%emt 0:00:00]} 51. Kh5 {[%emt 0:00:00]} Rc8 {[%emt 0:00:00]} 52. Kxh6 {[%emt 0:00:00]} Rg8 {[%emt 0:00:00]} 53. Rc6 {[%emt 0:00:00]} g4 {[%emt 0:00:00]} 54. hxg4 {[%emt 0:00:00]} Rd8 {[%emt 0:00:00]} 55. g5 {[%emt 0:00:00]} Nf7+ {[%emt 0:00:00]} 56. Kg6 {[%emt 0:00:00]} Nd6 {[%emt 0:00:00]} 57. Rc7 {[%emt 0:00:00]} Rg8+ {[%emt 0:00:00]} 58. Rg7 {[%emt 0:00:00]} Rf8 {[%emt 0:00:00]} 59. Re7+ {[%emt 0:00:00]} Kf4 {[%emt 0:00:00]} 60. Kg7 {[%emt 0:00:00]} Rd8 {[%emt 0:00:00]} 61. g6 {[%emt 0:00:00]} Ne8+ {[%emt 0:00:00]} 62. Rxe8 {[%emt 0:00:00]} Rxe8 {[%emt 0:00:00]} 63. Kf7 {[%emt 0:00:00]} Rb8 {[%emt 0:00:00]} 64. g7 {[%emt 0:00:00]} Rb7+ {[%emt 0:00:00]} 65. Kg6 {[%emt 0:00:00]} Rb6+ {[%emt 0:00:00]} 66. Kh7 {[%emt 0:00:00]} Rb7 {[%emt 0:00:00]} 67. Kh8 {[%emt 0:00:00]} Rxg7 {[%emt 0:00:00]} 68. Kxg7 {[%emt 0:00:00]} Kg3 {[%emt 0:00:00]} 69. d6 {[%emt 0:00:00]} Kh2 {[%emt 0:00:00]} 70. d7 {[%emt 0:00:00]} Kg1 {[%emt 0:00:00]} 71. d8=Q {[%emt 0:00:00]} Kf2 {[%emt 0:00:00]} 72. Qg5 {[%emt 0:00:00]} Kg1 {[%emt 0:00:00]} 73. Qe3+ {[%emt 0:00:00]} Kh2 {[%emt 0:00:00]} 74. Qf2 {[%emt 0:00:00]} Kh1 {[%emt 0:00:00]} 75. g4# {[%emt 0:00:00]} 1-0

[Event "WCCC G10 2019"]
[Site "Weifang"]
[Date "2019.08.26"]
[Round "6.3"]
[White "Mou, Iris"]
[Black "Kirtadze, Anastasia"]
[Result "1-0"]
[ECO "B52"]
[WhiteElo "1669"]
[BlackElo "1532"]
[Annotator "NA RC"]
[PlyCount "89"]
[EventDate "2019.08.21"]
[EventType "swiss"]
[EventCountry "CHN"]
[SourceTitle "playchess.com"]
[Source "ChessBase"]
[SourceQuality "1"]
[TimeControl "40/5400+30:1800+30"]

1. e4 {[%emt 0:00:00]} c5 {[%emt 0:00:00]} 2. Nf3 {[%emt 0:00:00]} d6 {[%emt 0:00:00]} 3. Bb5+ {[%emt 0:00:00]} Bd7 {[%emt 0:00:02]} 4. Bxd7+ {[%emt 0:00:00]} Qxd7 {[%emt 0:00:46]} 5. O-O {[%emt 0:00:08]} Nc6 {[%emt 0:00:22]} 6. c3 {[%emt 0:00:26]} g6 {[%emt 0:09:02]} 7. d4 {[%emt 0:01:45]} cxd4 {[%emt 0:00:33]} 8. cxd4 {[%emt 0:00:37]} Bg7 {[%emt 0:00:10]} 9. Nc3 {[%emt 0:02:08]} Nf6 {[%emt 0:01:36]} 10. Re1 {[%emt 0:04:42]} O-O {[%emt 0:04:25]} 11. Bg5 {[%emt 0:04:56]} h6 {[%emt 0:10:14]} 12. Bh4 {[%emt 0:03:13]} g5 {[%emt 0:07:02]} 13. Bg3 {[%emt 0:00:29]} Nh5 {[%emt 0:00:11]} 14. d5 {[%emt 0:04:48]} Nd8 {[%emt 0:01:13]} 15. Ne5 {[%emt 0:01:35]} dxe5 {[%emt 0:00:53]} 16. Qxh5 {[%emt 0:00:15]} Rc8 {[%emt 0:00:44]} 17. h4 {[%emt 0:05:22]} gxh4 {[%emt 0:05:08]} 18. Bxe5 {[%emt 0:02:30]} f6 {[%emt 0:00:54]} 19. Bf4 {[%emt 0:02:36]} Nf7 {[%emt 0:01:06]} 20. Qxh4 {[%emt 0:06:38]} Ng5 {[%emt 0:04:49]} 21. Re3 {[%emt 0:10:39]} Rc4 {[%emt 0:07:53]} 22. Rae1 {[%emt 0:10:55]} b5 {[%emt 0:08:35]} 23. b3 {[%emt 0:06:13]} Rcc8 {[%emt 0:01:26]} 24. Ne2 {[%emt 0:05:22]} Qe8 {[%emt 0:01:30]} 25. Nd4 {[%emt 0:02:49]} Qg6 {[%emt 0:00:49]} 26. Rg3 {[%emt 0:05:52]} Qh7 {[%emt 0:02:12]} 27. Nf5 {[%emt 0:04:05]} Rf7 {[%emt 0:00:21]} 28. d6 {[%emt 0:02:23]} exd6 {[%emt 0:02:12]} 29. Nxd6 {[%emt 0:01:16]} Rcf8 {[%emt 0:00:23]} 30. Nxf7 {[%emt 0:01:33]} Rxf7 {[%emt 0:00:20]} 31. e5 {[%emt 0:03:58]} Re7 {[%emt 0:08:28]} 32. Rc1 {[%emt 0:02:06]} Qf5 {[%emt 0:01:46]} 33. exf6 {[%emt 0:01:56]} Bxf6 {[%emt 0:06:50]} 34. Bxg5 {[%emt 0:01:20]} hxg5 {[%emt 0:00:55]} 35. Qg4 {[%emt 0:00:36]} Qg6 {[%emt 0:01:06]} 36. Rf3 {[%emt 0:01:21]} Kg7 {[%emt 0:05:17]} 37. Qf5 {[%emt 0:00:46]} Qxf5 {[%emt 0:00:48]} 38. Rxf5 {[%emt 0:00:06]} b4 {[%emt 0:00:05]} 39. Rc6 {[%emt 0:00:55]} Rf7 {[%emt 0:00:48]} 40. Ra6 {[%emt 0:01:13]} g4 {[%emt 0:01:07]} 41. Rf4 {[%emt 0:30:58]} g3 {[%emt 0:30:51]} 42. fxg3 {[%emt 0:01:57]} Bc3 {[%emt 0:00:09]} 43. Rxf7+ {[%emt 0:00:22]} Kxf7 {[%emt 0:00:07]} 44. Rxa7+ {[%emt 0:00:12]} Kf6 {[%emt 0:00:06]} 45. Rc7 {[%emt 0:00:36]} 1-0

[Event "WCCC G10 2019"]
[Site "Weifang"]
[Date "2019.08.26"]
[Round "6.4"]
[White "Zhao, Yunqing"]
[Black "Nurgaliyeva, Zarina"]
[Result "0-1"]
[ECO "E01"]
[WhiteElo "1539"]
[BlackElo "1474"]
[Annotator "NA"]
[PlyCount "146"]
[EventDate "2019.08.21"]
[EventType "swiss"]
[EventCountry "CHN"]
[SourceTitle "playchess.com"]
[Source "ChessBase"]
[SourceQuality "1"]
[TimeControl "40/5400+30:1800+30"]

1. d4 {[%emt 0:00:00]} Nf6 {[%emt 0:00:00]} 2. c4 {[%emt 0:00:00]} e6 {[%emt 0:00:00]} 3. g3 {[%emt 0:00:00]} d5 {[%emt 0:00:00]} 4. Bg2 {[%emt 0:00:00]} c6 {[%emt 0:00:38]} 5. Nf3 {[%emt 0:00:01]} Bb4+ {[%emt 0:00:15]} 6. Bd2 {[%emt 0:00:12]} Bd6 {[%emt 0:00:27]} 7. Qc2 {[%emt 0:00:21]} Nbd7 {[%emt 0:00:15]} 8. O-O {[%emt 0:00:27]} O-O {[%emt 0:00:07]} 9. Bg5 {[%emt 0:03:21]} h6 {[%emt 0:01:30]} 10. Bxf6 {[%emt 0:01:06]} Nxf6 {[%emt 0:00:07]} 11. Nbd2 {[%emt 0:00:19]} b6 {[%emt 0:00:14]} 12. e4 {[%emt 0:01:04]} Be7 {[%emt 0:00:47]} 13. b3 {[%emt 0:03:17]} Bb7 {[%emt 0:01:37]} 14. e5 {[%emt 0:01:31]} Nd7 {[%emt 0:00:37]} 15. Qd3 {[%emt 0:08:17]} c5 {[%emt 0:05:03]} 16. Rfe1 {[%emt 0:05:36]} Qc7 {[%emt 0:12:43]} 17. Rac1 {[%emt 0:00:59]} Rac8 {[%emt 0:04:38]} 18. cxd5 {[%emt 0:01:28]} Bxd5 {[%emt 0:00:19]} 19. dxc5 {[%emt 0:27:32]} Nxc5 {[%emt 0:00:39]} 20. Qe2 {[%emt 0:00:58]} Qb7 {[%emt 0:02:27]} 21. Nc4 {[%emt 0:01:52]} Rfd8 {[%emt 0:14:39]} 22. Red1 {[%emt 0:00:52]} Qa6 {[%emt 0:11:11]} 23. Nd4 {[%emt 0:09:46]} Bxg2 {[%emt 0:03:37]} 24. Kxg2 {[%emt 0:00:14]} Nb7 {[%emt 0:11:24]} 25. Rc2 {[%emt 0:18:00]} Bc5 {[%emt 0:09:02]} 26. Nf3 {[%emt 0:01:14]} Na5 {[%emt 0:14:22]} 27. Nxa5 {[%emt 0:02:16]} Qxa5 {[%emt 0:01:06]} 28. Rxd8+ {[%emt 0:01:56]} Rxd8 {[%emt 0:00:05]} 29. Nd2 {[%emt 0:00:22]} Bb4 {[%emt 0:02:28]} 30. Nc4 {[%emt 0:00:57]} Qd5+ {[%emt 0:00:14]} 31. Kg1 {[%emt 0:05:20]} b5 {[%emt 0:01:11]} 32. Nb2 {[%emt 0:00:17]} a6 {[%emt 0:00:56]} 33. Rc1 {[%emt 0:03:00]} Qd2 {[%emt 0:02:35]} 34. Rc2 {[%emt 0:00:18]} Qd4 {[%emt 0:00:36]} 35. Rc1 {[%emt 0:01:14]} Rd5 {[%emt 0:01:09]} 36. Rc8+ {[%emt 0:02:13]} Bf8 {[%emt 0:00:17]} 37. Rc2 {[%emt 0:01:18]} Rxe5 {[%emt 0:00:14]} 38. Qd3 {[%emt 0:00:26]} Rd5 {[%emt 0:00:29]} 39. Qxd4 {[%emt 0:00:39]} Rxd4 {[%emt 0:00:06]} 40. Kf1 {[%emt 0:00:15]} g6 {[%emt 0:00:38]} 41. Ke2 {[%emt 0:30:23]} e5 {[%emt 0:30:28]} 42. h4 {[%emt 0:00:28]} Kg7 {[%emt 0:00:15]} 43. Nd3 {[%emt 0:00:24]} f5 {[%emt 0:00:44]} 44. Ke3 {[%emt 0:00:33]} Kf6 {[%emt 0:00:29]} 45. Rc6+ {[%emt 0:00:30]} Rd6 {[%emt 0:00:04]} 46. Rc8 {[%emt 0:00:30]} Be7 {[%emt 0:00:13]} 47. Rc7 {[%emt 0:00:27]} Bd8 {[%emt 0:00:22]} 48. Rh7 {[%emt 0:00:40]} Rc6 {[%emt 0:00:37]} 49. Nb4 {[%emt 0:00:40]} Rd6 {[%emt 0:00:50]} 50. Rxh6 {[%emt 0:00:35]} Kg7 {[%emt 0:00:07]} 51. Rxg6+ {[%emt 0:00:33]} Kxg6 {[%emt 0:00:07]} 52. Nd3 {[%emt 0:00:04]} Bb6+ {[%emt 0:00:11]} 53. Ke2 {[%emt 0:00:07]} Bd4 {[%emt 0:00:16]} 54. a4 {[%emt 0:00:18]} bxa4 {[%emt 0:00:07]} 55. bxa4 {[%emt 0:00:07]} Rc6 {[%emt 0:00:14]} 56. Nb4 {[%emt 0:00:16]} Rc4 {[%emt 0:00:23]} 57. Nxa6 {[%emt 0:00:06]} Rxa4 {[%emt 0:00:04]} 58. Nc7 {[%emt 0:00:06]} Ra2+ {[%emt 0:00:14]} 59. Kd3 {[%emt 0:00:08]} Bxf2 {[%emt 0:00:13]} 60. g4 {[%emt 0:00:11]} Bxh4 {[%emt 0:00:07]} 61. gxf5+ {[%emt 0:00:06]} Kxf5 {[%emt 0:00:30]} 62. Kc4 {[%emt 0:00:07]} Rc2+ {[%emt 0:00:06]} 63. Kd5 {[%emt 0:00:03]} Rxc7 {[%emt 0:00:08]} 64. Kd6 {[%emt 0:00:04]} e4 {[%emt 0:00:20]} 65. Kxc7 {[%emt 0:00:04]} e3 {[%emt 0:00:03]} 66. Kd6 {[%emt 0:00:04]} e2 {[%emt 0:00:05]} 67. Kd7 {[%emt 0:00:03]} e1=Q {[%emt 0:00:09]} 68. Kd6 {[%emt 0:00:03]} Qe5+ {[%emt 0:00:11]} 69. Kc6 {[%emt 0:00:04]} Bf2 {[%emt 0:00:11]} 70. Kb7 {[%emt 0:00:05]} Qd6 {[%emt 0:00:19]} 71. Kc8 {[%emt 0:00:03]} Qe7 {[%emt 0:00:11]} 72. Kb8 {[%emt 0:00:03]} Bb6 {[%emt 0:00:08]} 73. Ka8 {[%emt 0:00:04]} Qa7# {[%emt 0:00:04]} 0-1